bitfinex/quotes_SOLUSD_20241226
["timestamp","ask_amount","ask_price","bid_price","bid_amount"]
[1735173500836,12.6813,197.15,197.07,10.86114199]
[1735173501131,20.0,197.16,197.09,10.86114199]
[1735173501311,10.86114199,197.16,197.09,10.86114199]
[1735173501633,10.86114199,197.14,197.07,10.86114199]
[1735173502100,0.12549,197.16,197.07,10.86114199]
[1735173502423,17.00323752,197.14,197.03,6.92372041]
[1735173502631,17.00323752,197.14,197.07,17.00323752]
[1735173503110,23.902374,197.16,197.09,17.00323752]
[1735173503299,40.90561152,197.16,197.09,17.00323752]
[1735173503832,17.00323752,197.16,197.09,17.00323752]
[1735173504020,29.68263752,197.17,197.1,17.00323752]
[1735173504201,17.00323752,197.16,197.09,17.00323752]
[1735173505103,29.68263752,197.17,197.09,17.00323752]
[1735173505532,17.00323752,197.16,197.09,17.00323752]
[1735173506714,1.644,197.29,197.15,17.00323752]
[1735173506916,17.00323752,197.24,197.17,17.00323752]
[1735173507229,17.00323752,197.22,197.15,17.00323752]
[1735173507431,17.00323752,197.21,197.13,17.00323752]
[1735173507804,17.00323752,197.22,197.15,17.00323752]
[1735173508232,17.00323752,197.22,197.14,17.00323752]
[1735173508431,12.6745,197.25,197.13,17.00323752]
[1735173508432,17.00323752,197.2,197.13,17.00323752]
[1735173508605,17.00323752,197.18,197.1,17.00323752]
[1735173509000,17.00323752,197.18,197.11,17.00323752]
[1735173509831,40.90561152,197.19,197.11,17.00323752]
[1735173510336,17.00323752,197.18,197.1,17.00323752]
[1735173511135,23.902374,197.16,197.09,17.00323752]
[1735173512037,40.90561152,197.16,197.08,17.00323752]
[1735173512929,17.00323752,197.15,197.07,17.00323752]
[1735173513222,17.00323752,197.15,197.08,17.00323752]
[1735173513427,40.90561152,197.16,197.05,6.1625]
[1735173513641,40.90561152,197.16,197.08,17.00323752]
[1735173513828,40.90561152,197.16,197.09,17.00323752]
[1735173515150,17.00323752,197.16,197.09,17.00323752]
[1735173515445,20.0,197.14,197.1,17.00323752]
[1735173517744,20.0,197.14,197.09,17.00323752]
[1735173517942,20.0,197.13,197.04,0.76091158]
[1735173518131,17.00323752,197.13,197.06,17.00323752]
[1735173518331,20.0,197.1,197.05,17.00323752]
[1735173519143,20.0,197.1,197.07,17.00323752]
[1735173519325,20.0,197.1,197.06,17.00323752]
[1735173521252,37.00323752,197.1,197.04,17.00323752]
[1735173522647,37.00323752,197.1,197.03,17.00323752]
[1735173522848,37.00323752,197.1,197.04,17.00323752]
[1735173523147,17.00323752,197.08,197.02,17.00323752]
[1735173523455,40.78012152,197.09,197.02,17.00323752]
[1735173523624,17.00323752,197.08,197.02,17.00323752]
[1735173524454,17.00323752,197.08,197.01,17.00323752]
[1735173524828,17.00323752,197.08,197.02,17.00323752]
[1735173525347,40.78012152,197.09,197.02,17.00323752]
[1735173526145,17.00323752,197.08,197.02,17.00323752]
[1735173526452,23.776884,197.09,197.04,17.00323752]
[1735173527453,49.68763752,197.1,197.04,17.00323752]
[1735173527624,32.6844,197.1,197.04,17.00323752]
[1735173527831,20.0,197.1,197.05,17.00323752]
[1735173532150,20.0,197.1,197.04,10.88600943]
[1735173532341,30.88600943,197.1,197.03,10.88600943]
[1735173533157,12.6836,197.11,197.03,10.88600943]
[1735173533158,23.56960943,197.11,197.03,10.88600943]
[1735173533362,23.56960943,197.11,197.04,10.88600943]
[1735173534052,12.6836,197.11,197.06,10.88600943]
[1735173534233,1.6526,197.12,197.06,10.88600943]
[1735173534556,1.6526,197.12,197.05,10.88600943]
[1735173534746,1.6526,197.12,197.07,10.88600943]
[1735173534930,20.0,197.11,197.06,10.88600943]
[1735173536327,20.0,197.11,197.05,10.88600943]
[1735173538450,20.0,197.11,197.0,0.76113722]
[1735173538451,20.0,197.11,197.06,10.88600943]
[1735173538758,21.6526,197.12,197.08,10.88600943]
[1735173538993,21.6526,197.12,197.07,10.88600943]
[1735173539755,20.0,197.11,197.06,10.88600943]
[1735173540034,12.6805,197.16,197.08,10.88600943]
[1735173540233,12.6805,197.16,197.09,10.88600943]
[1735173540740,12.6805,197.16,197.1,10.88600943]
[1735173540933,12.48140943,197.17,197.1,10.88600943]
[1735173540934,1.5954,197.17,197.1,10.88600943]
[1735173541134,1.5954,197.17,197.12,10.88600943]
[1735173541959,10.88600943,197.2,197.13,10.88600943]
[1735173542158,1.5954,197.22,197.14,10.88600943]
[1735173542363,10.88600943,197.21,197.14,10.88600943]
[1735173543567,10.88600943,197.15,197.04,6.3995]
[1735173543870,0.12549,197.14,197.04,6.3995]
[1735173544076,0.12549,197.14,197.07,10.88600943]
[1735173544582,20.0,197.16,197.08,10.88600943]
[1735173544745,10.88600943,197.15,197.08,10.88600943]
[1735173545646,20.0,197.16,197.08,10.88600943]
[1735173545845,20.0,197.15,197.08,10.88600943]
[1735173546047,10.88600943,197.16,197.08,10.88600943]
[1735173546256,30.88600943,197.15,197.08,10.88600943]
[1735173547354,0.12549,197.14,197.07,10.88600943]
[1735173549662,10.88600943,197.13,197.05,10.88600943]
[1735173549974,0.12549,197.12,197.04,6.3995]
[1735173550179,0.12549,197.12,197.05,10.88600943]
[1735173551591,0.12549,197.12,197.06,10.88600943]
[1735173551794,20.0,197.11,197.06,10.88600943]
[1735173553067,20.0,197.11,197.05,10.88600943]
[1735173554210,1.6389,197.02,196.91,0.76111984]
[1735173554489,10.88600943,196.99,196.91,10.88600943]
[1735173555288,10.88600943,196.99,196.9,10.88600943]
[1735173555497,10.88600943,196.99,196.88,318.4145]
[1735173555670,10.88600943,196.99,196.9,10.88600943]
[1735173556294,17.03244142,196.98,196.9,17.03244142]
[1735173556506,23.902374,196.97,196.9,17.03244142]
[1735173556998,0.12549,196.95,196.88,23.44694142]
[1735173559212,17.03244142,196.95,196.88,23.44694142]
[1735173559394,17.03244142,196.97,196.9,17.03244142]
[1735173559800,17.03244142,196.97,196.89,17.03244142]
[1735173560306,17.03244142,197.0,196.93,17.03244142]
[1735173561007,17.03244142,197.0,196.92,17.03244142]
[1735173561310,17.03244142,196.99,196.92,17.03244142]
[1735173562191,17.15793142,197.01,196.94,17.03244142]
[1735173562397,17.03244142,197.06,196.99,17.03244142]
[1735173562613,1.6464,197.07,197.01,17.03244142]
[1735173563397,1.6464,197.07,196.99,312.0]
[1735173563398,1.6464,197.07,197.03,17.03244142]
[1735173563599,17.03244142,197.12,197.05,17.03244142]
[1735173563920,17.03244142,197.15,197.08,17.03244142]
[1735173564216,0.12549,197.14,197.08,17.03244142]
[1735173564614,17.03244142,197.17,197.1,17.03244142]
[1735173564785,7.91662379,197.19,197.15,17.03244142]
[1735173564980,7.91662379,197.2,197.16,17.03244142]
[1735173565903,7.91662379,197.2,197.1,7.21829291]
[1735173566223,17.03244142,197.24,197.18,17.03244142]
[1735173566530,17.03244142,197.28,197.22,17.03244142]
[1735173567418,0.12549,197.28,197.22,17.03244142]
[1735173567924,6.6439,197.33,197.14,0.76044698]
[1735173567925,17.03244142,197.3,197.23,17.03244142]
[1735173568118,17.03244142,197.29,197.22,17.03244142]
[1735173568312,17.03244142,197.27,197.2,17.03244142]
[1735173568525,17.03244142,197.26,197.19,17.03244142]
[1735173568822,17.03244142,197.22,197.15,17.03244142]
[1735173569621,17.03244142,197.21,197.14,17.03244142]
[1735173570031,17.03244142,197.2,197.13,17.03244142]
[1735173570620,17.03244142,197.21,197.14,17.03244142]
[1735173570838,17.03244142,197.2,197.13,17.03244142]
[1735173571042,17.03244142,197.17,197.1,23.48994142]
[1735173571333,17.03244142,197.15,197.07,17.03244142]
[1735173571501,17.03244142,197.14,197.05,6.6103]
[1735173571699,17.03244142,197.14,197.06,17.03244142]
[1735173571907,17.03244142,197.13,197.05,23.64274142]
[1735173572340,27.21028142,197.13,197.05,33.82058142]
[1735173572849,27.21028142,197.13,197.05,27.21028142]
[1735173573543,27.21028142,197.11,197.04,27.21028142]
[1735173573842,27.21028142,197.09,197.01,27.21028142]
[1735173574409,27.33577142,197.06,196.96,0.76116873]
[1735173574637,27.21028142,197.01,196.93,6.5138]
[1735173574828,27.21028142,197.02,196.94,27.21028142]
[1735173575032,27.21028142,197.03,196.95,27.21028142]
[1735173578634,27.21028142,197.05,196.97,27.21028142]
[1735173583651,27.21028142,197.04,196.96,27.21028142]
[1735173584114,27.21028142,197.04,196.97,27.21028142]
[1735173584952,27.21028142,197.04,196.96,27.97167177]
[1735173585252,27.21028142,197.03,196.96,27.21028142]
[1735173585748,27.21028142,197.03,196.94,0.76140145]
[1735173585959,27.21028142,197.03,196.95,27.21028142]
[1735173586119,27.21028142,197.03,196.96,27.21028142]
[1735173587751,27.21028142,197.02,196.95,27.21028142]
[1735173588127,27.21028142,197.03,196.96,27.21028142]
[1735173592256,17.02269214,197.03,196.96,17.02269214]
[1735173594938,17.02269214,197.03,196.97,17.02269214]
[1735173595248,17.02269214,197.07,197.01,17.02269214]
[1735173595822,17.02269214,197.08,197.01,17.02269214]
[1735173596161,17.02269214,197.07,197.01,17.02269214]
[1735173596328,17.02269214,197.08,197.01,17.02269214]
[1735173596648,17.02269214,197.11,197.04,17.02269214]
[1735173597031,1.6479,197.12,197.07,17.02269214]
[1735173597234,1.6479,197.12,197.01,17.02269214]
[1735173597235,17.02269214,197.16,197.09,17.02269214]
[1735173597534,18.52599214,197.18,197.11,17.02269214]
[1735173597840,17.02269214,197.16,197.09,17.02269214]
[1735173600425,20.0,197.2,197.11,17.02269214]
[1735173600624,17.02269214,197.19,197.12,17.02269214]
[1735173600828,17.02269214,197.17,197.1,17.02269214]
[1735173601422,17.02269214,197.16,197.09,17.02269214]
[1735173601753,17.02269214,197.17,197.1,17.02269214]
[1735173602649,17.02269214,197.17,197.09,17.02269214]
[1735173603161,17.02269214,197.17,197.06,0.76090739]
[1735173603334,17.02269214,197.16,197.09,17.02269214]
[1735173603658,17.02269214,197.17,197.1,17.02269214]
[1735173605747,17.02269214,197.15,197.09,17.02269214]
[1735173606062,17.02269214,197.13,197.06,17.02269214]
[1735173606260,17.02269214,197.15,197.08,17.02269214]
[1735173606463,17.02269214,197.16,197.09,17.02269214]
[1735173608663,17.02269214,197.15,197.09,17.02269214]
[1735173609042,17.02269214,197.15,197.08,17.02269214]
[1735173610778,17.02269214,197.14,197.08,17.02269214]
[1735173611254,17.02269214,197.17,197.1,17.02269214]
[1735173611446,17.02269214,197.19,197.13,17.02269214]
[1735173611638,17.02269214,197.2,197.13,17.02269214]
[1735173611833,17.02269214,197.2,197.14,17.02269214]
[1735173612272,17.02269214,197.21,197.14,17.02269214]
[1735173612736,17.02269214,197.2,197.14,17.02269214]
[1735173612932,17.02269214,197.21,197.14,17.02269214]
[1735173614089,17.02269214,197.19,197.12,17.02269214]
[1735173615051,17.02269214,197.2,197.13,17.02269214]
[1735173615255,17.02269214,197.21,197.14,17.02269214]
[1735173615865,17.02269214,197.22,197.16,17.02269214]
[1735173616067,17.02269214,197.24,197.17,17.02269214]
[1735173616878,17.02269214,197.26,197.15,30.0]
[1735173617166,17.02269214,197.28,197.21,17.02269214]
[1735173617371,17.02269214,197.29,197.22,17.02269214]
[1735173618776,17.02269214,197.3,197.22,17.02269214]
[1735173619573,17.02269214,197.3,197.23,17.02269214]
[1735173619768,17.02269214,197.28,197.18,2.35037301]
[1735173619981,17.02269214,197.28,197.21,17.02269214]
[1735173620282,17.02269214,197.29,197.22,17.02269214]
[1735173620775,17.02269214,197.3,197.23,17.02269214]
[1735173620974,17.02269214,197.3,197.18,32.35037301]
[1735173620975,17.02269214,197.32,197.25,17.02269214]
[1735173621177,17.02269214,197.34,197.27,17.02269214]
[1735173621472,17.02269214,197.35,197.28,17.02269214]
[1735173621650,17.02269214,197.37,197.3,17.02269214]
[1735173621851,17.02269214,197.38,197.31,17.02269214]
[1735173622371,17.02269214,197.37,197.3,17.02269214]
[1735173622545,17.02269214,197.36,197.29,17.02269214]
[1735173622743,17.02269214,197.35,197.27,17.02269214]
[1735173622950,17.02269214,197.35,197.28,17.02269214]
[1735173623338,17.02269214,197.36,197.29,17.02269214]
[1735173623772,20.0,197.37,197.3,17.02269214]
[1735173624076,20.0,197.37,197.31,17.02269214]
[1735173624446,1.5426,197.42,197.33,17.02269214]
[1735173624645,17.02269214,197.4,197.33,17.02269214]
[1735173624846,17.02269214,197.4,197.32,17.02269214]
[1735173625042,17.02269214,197.4,197.33,17.02269214]
[1735173625475,17.02269214,197.41,197.34,17.02269214]
[1735173625777,17.02269214,197.42,197.35,17.02269214]
[1735173627680,17.02269214,197.43,197.36,17.02269214]
[1735173628467,17.02269214,197.44,197.37,17.02269214]
[1735173629164,17.02269214,197.46,197.38,17.02269214]
[1735173629360,1.5426,197.47,197.4,17.02269214]
[1735173629666,17.02269214,197.46,197.39,17.02269214]
[1735173629867,18.56529214,197.47,197.4,17.02269214]
[1735173630074,17.02269214,197.49,197.42,17.02269214]
[1735173630265,17.02269214,197.51,197.43,17.02269214]
[1735173630475,17.02269214,197.51,197.44,17.02269214]
[1735173631066,1.5426,197.58,197.49,17.02269214]
[1735173631267,18.56529214,197.58,197.51,17.02269214]
[1735173631671,1.5426,197.58,197.52,17.02269214]
[1735173632175,17.02269214,197.59,197.52,17.02269214]
[1735173632485,17.02269214,197.59,197.45,47.02269214]
[1735173632486,17.02269214,197.53,197.41,1.59]
[1735173632696,17.02269214,197.51,197.43,23.08859214]
[1735173633065,17.02269214,197.52,197.44,17.02269214]
[1735173633264,0.12549,197.55,197.42,17.02269214]
[1735173633265,17.02269214,197.5,197.42,17.02269214]
[1735173633769,17.02269214,197.51,197.43,17.02269214]
[1735173633969,23.776884,197.5,197.43,17.02269214]
[1735173634604,23.776884,197.5,197.44,17.02269214]
[1735173634779,23.776884,197.5,197.43,17.02269214]
[1735173635801,17.02269214,197.49,197.41,17.02269214]
[1735173636171,23.776884,197.5,197.43,17.02269214]
[1735173636799,18.59519214,197.53,197.47,17.02269214]
[1735173637003,17.02269214,197.53,197.47,17.02269214]
[1735173637203,17.02269214,197.55,197.47,17.02269214]
[1735173637406,17.02269214,197.57,197.49,17.02269214]
[1735173637574,1.5725,197.58,197.51,17.02269214]
[1735173637777,17.02269214,197.57,197.51,17.02269214]
[1735173638282,27.09245368,197.56,197.48,27.09245368]
[1735173639511,27.09245368,197.58,197.5,27.09245368]
[1735173639673,27.09245368,197.58,197.5,339.09245368]
[1735173641102,0.12549,197.57,197.52,27.09245368]
[1735173641590,0.12549,197.55,197.48,33.74055368]
[1735173642202,27.21794368,197.55,197.48,27.09245368]
[1735173642709,0.12549,197.53,197.46,27.09245368]
[1735173644800,27.09245368,197.59,197.52,27.09245368]
[1735173645180,27.09245368,197.6,197.52,27.09245368]
[1735173645384,0.12549,197.58,197.52,27.09245368]
[1735173647793,27.09245368,197.6,197.52,27.09245368]
[1735173649201,27.21794368,197.59,197.52,312.0]
[1735173649400,0.12549,197.54,197.48,27.09245368]
[1735173649722,0.12549,197.52,197.46,27.09245368]
[1735173650828,20.0,197.5,197.41,0.7595386]
[1735173651119,27.09245368,197.44,197.37,33.12355368]
[1735173651296,0.12549,197.43,197.37,33.12355368]
[1735173651500,27.09245368,197.44,197.35,27.09245368]
[1735173651692,27.09245368,197.44,197.32,6.79074783]
[1735173651693,27.09245368,197.42,197.33,27.09245368]
[1735173651892,0.12549,197.41,197.33,27.09245368]
[1735173652298,0.12549,197.41,197.35,27.09245368]
[1735173653292,20.0,197.39,197.33,27.09245368]
[1735173654200,0.12549,197.41,197.33,27.09245368]
[1735173654723,20.0,197.39,197.33,27.09245368]
[1735173655729,20.0,197.39,197.33,339.09245368]
[1735173656029,20.0,197.37,197.31,27.09245368]
[1735173656633,0.12549,197.41,197.29,27.09245368]
[1735173656634,20.0,197.35,197.29,27.09245368]
[1735173658521,20.0,197.32,197.27,27.09245368]
[1735173659026,20.0,197.23,197.13,27.09245368]
[1735173659233,47.09245368,197.23,197.15,27.09245368]
[1735173659430,20.0,197.22,197.17,27.09245368]
[1735173660813,0.88569,197.21,197.17,27.09245368]
[1735173661407,0.88569,197.21,197.15,27.09245368]
[1735173661607,13.56249,197.21,197.15,27.09245368]
[1735173661927,40.65494368,197.21,197.15,312.0]
[1735173662735,40.65494368,197.21,197.13,27.09245368]
[1735173664733,39.76925368,197.21,197.13,27.09245368]
[1735173665038,27.09245368,197.21,197.13,27.85310445]
[1735173665540,27.09245368,197.25,197.17,27.09245368]
[1735173665711,27.09245368,197.25,197.19,27.09245368]
[1735173666048,27.09245368,197.28,197.21,27.09245368]
[1735173666508,27.09245368,197.29,197.21,27.09245368]
[1735173666910,27.09245368,197.27,197.2,27.09245368]
[1735173667110,27.09245368,197.26,197.19,27.09245368]
[1735173668636,27.09245368,197.27,197.2,27.09245368]
[1735173670537,0.12549,197.26,197.18,33.96445171]
[1735173670749,27.09245368,197.25,197.16,27.09245368]
[1735173671047,0.7602,197.24,197.16,27.09245368]
[1735173671348,27.09245368,197.25,197.16,27.09245368]
[1735173671525,27.09245368,197.23,197.16,27.09245368]
[1735173672614,27.09245368,197.25,197.16,27.09245368]
[1735173672816,0.7602,197.24,197.16,27.09245368]
[1735173673040,27.09245368,197.25,197.18,27.09245368]
[1735173673213,27.09245368,197.27,197.2,27.09245368]
[1735173674743,27.09245368,197.27,197.18,27.09245368]
[1735173675351,27.09245368,197.25,197.16,27.09245368]
[1735173675529,27.09245368,197.23,197.16,27.09245368]
[1735173675843,27.09245368,197.21,197.14,27.09245368]
[1735173676937,20.0,197.18,197.13,6.279]
[1735173677133,20.0,197.18,197.12,27.09245368]
[1735173677321,20.0,197.18,197.13,27.09245368]
[1735173679049,47.09245368,197.18,197.1,27.09245368]
[1735173679235,27.09245368,197.17,197.1,27.09245368]
[1735173679552,27.09245368,197.17,197.09,27.09245368]
[1735173680948,27.09245368,197.17,197.1,27.09245368]
[1735173682543,20.0,197.17,197.1,27.09245368]
[1735173683351,20.0,197.17,197.11,27.09245368]
[1735173684232,20.0,197.17,197.11,16.99665151]
[1735173685477,20.0,197.17,197.12,16.99665151]
[1735173685683,20.0,197.16,197.11,16.99665151]
[1735173688658,20.0,197.16,197.1,16.99665151]
[1735173689359,20.0,197.16,197.11,16.99665151]
[1735173689883,20.0,197.16,197.1,16.99665151]
[1735173691161,16.99665151,197.14,197.06,16.99665151]
[1735173691490,0.7602,197.15,197.05,16.99665151]
[1735173691491,16.99665151,197.12,197.05,16.99665151]
[1735173696079,49.67685151,197.16,197.08,16.99665151]
[1735173696279,29.67685151,197.16,197.09,16.99665151]
[1735173696748,12.6802,197.16,197.1,16.99665151]
[1735173697198,12.6802,197.16,197.09,16.99665151]
[1735173697504,17.75685151,197.16,197.08,16.99665151]
[1735173697679,17.75685151,197.16,197.05,312.76086906]
[1735173697680,17.75685151,197.15,197.07,16.99665151]
[1735173697880,16.99665151,197.15,197.08,16.99665151]
[1735173698101,16.99665151,197.16,197.09,16.99665151]
[1735173698310,16.99665151,197.16,197.08,16.99665151]
[1735173698911,17.75685151,197.15,197.07,17.75761031]
[1735173699084,17.75685151,197.15,197.07,16.99665151]
[1735173699282,16.99665151,197.13,197.05,16.99665151]
[1735173699493,17.75685151,197.12,197.05,16.99665151]
[1735173700201,17.75685151,197.12,197.01,2.37525924]
[1735173700516,30.43955151,197.12,197.03,16.99665151]
[1735173702704,30.43955151,197.12,197.03,17.75769788]
[1735173704625,0.7602,197.12,197.07,16.99665151]
[1735173704787,0.7602,197.12,197.01,330.61085151]
[1735173704788,16.99665151,197.17,197.09,16.99665151]
[1735173705193,0.7602,197.16,197.09,16.99665151]
[1735173707015,16.99665151,197.15,197.07,16.99665151]
[1735173707212,0.12549,197.19,197.02,30.76089293]
[1735173707213,16.99665151,197.13,197.05,16.99665151]
[1735173707399,0.7602,197.12,197.05,16.99665151]
[1735173707599,17.75685151,197.12,197.05,16.99665151]
[1735173707801,1.6013,197.11,197.05,16.99665151]
[1735173709614,2.3615,197.11,197.05,16.99665151]
[1735173713519,16.99665151,197.1,197.03,16.99665151]
[1735173713725,16.99665151,197.08,197.01,16.99665151]
[1735173713909,0.7602,197.07,197.01,16.99665151]
[1735173714700,0.7602,197.07,196.99,16.99665151]
[1735173715124,16.99665151,197.06,196.99,16.99665151]
[1735173715421,16.99665151,197.06,196.95,18.71866557]
[1735173715422,36.99665151,197.04,196.97,16.99665151]
[1735173715624,18.54965151,197.02,196.95,16.99665151]
[1735173715831,16.99665151,197.0,196.93,16.99665151]
[1735173716031,0.7602,196.99,196.93,16.99665151]
[1735173717411,17.75685151,196.99,196.91,16.99665151]
[1735173717731,36.99665151,196.98,196.91,16.99665151]
[1735173717906,0.7602,196.97,196.91,16.99665151]
[1735173718306,0.7602,196.97,196.9,16.99665151]
[1735173718811,17.75685151,196.97,196.89,16.99665151]
[1735173719015,16.99665151,196.96,196.88,16.99665151]
[1735173719213,0.7602,196.95,196.88,16.99665151]
[1735173720036,17.75685151,196.97,196.89,16.99665151]
[1735173721441,16.99665151,196.96,196.89,16.99665151]
[1735173721603,0.7602,196.95,196.89,16.99665151]
[1735173723332,17.75685151,196.96,196.89,16.99665151]
[1735173724540,16.99665151,196.96,196.89,16.99665151]
[1735173725941,0.7602,196.97,196.91,16.99665151]
[1735173726239,14.2426,197.02,196.95,16.99665151]
[1735173726240,2.3132,197.02,196.95,16.99665151]
[1735173726426,1.553,197.02,196.96,16.99665151]
[1735173729046,1.553,197.02,196.97,16.99665151]
[1735173729347,1.553,197.02,196.96,16.99665151]
[1735173729541,6.3796,197.03,196.98,16.99665151]
[1735173729744,16.99665151,197.06,196.99,16.99665151]
[1735173730163,0.7602,197.05,196.98,16.99665151]
[1735173730357,16.99665151,197.06,196.98,16.99665151]
[1735173730548,19.35195151,197.08,197.0,16.99665151]
[1735173730737,16.99665151,197.11,197.04,16.99665151]
[1735173730938,17.75685151,197.11,197.04,16.99665151]
[1735173731140,16.99665151,197.1,197.03,16.99665151]
[1735173731326,8.46893014,197.12,197.01,16.99665151]
[1735173731327,16.99665151,197.08,197.01,16.99665151]
[1735173731525,0.7602,197.07,197.01,16.99665151]
[1735173732269,16.99665151,197.08,197.01,16.99665151]
[1735173732962,0.7602,197.1,197.03,16.99665151]
[1735173733340,17.75685151,197.1,197.03,16.99665151]
[1735173733740,17.75685151,197.1,197.02,16.99665151]
[1735173734937,16.99665151,197.07,197.0,16.99665151]
[1735173735138,16.99665151,197.07,196.95,12.693]
[1735173735139,0.7602,197.06,196.99,16.99665151]
[1735173735553,17.75685151,197.06,196.98,16.99665151]
[1735173735861,16.99665151,197.05,196.98,16.99665151]
[1735173736058,16.99665151,197.03,196.96,16.99665151]
[1735173736260,0.7602,197.02,196.96,16.99665151]
[1735173738256,16.99665151,197.01,196.94,16.99665151]
[1735173738464,0.7602,197.0,196.92,16.99665151]
[1735173738768,16.99665151,196.99,196.92,16.99665151]
[1735173738963,0.7602,196.98,196.92,16.99665151]
[1735173741866,0.7602,196.98,196.9,16.99665151]
[1735173742046,16.99665151,196.97,196.9,16.99665151]
[1735173742243,0.7602,196.96,196.9,16.99665151]
[1735173744864,1.6643,196.95,196.86,0.7616648]
[1735173745071,1.6643,196.95,196.89,16.99665151]
[1735173745574,0.7602,196.94,196.85,16.99665151]
[1735173745872,16.99665151,196.92,196.85,16.99665151]
[1735173746079,0.7602,196.92,196.86,16.99665151]
[1735173748573,0.7602,196.92,196.85,16.99665151]
[1735173748779,17.75685151,196.92,196.84,16.99665151]
[1735173749302,16.99665151,196.91,196.84,16.99665151]
[1735173750878,17.75685151,196.9,196.83,16.99665151]
[1735173751174,0.7602,196.9,196.84,16.99665151]
[1735173751679,0.7602,196.9,196.83,16.99665151]
[1735173752679,0.7602,196.9,196.85,16.99665151]
[1735173752980,0.7602,196.91,196.85,16.99665151]
[1735173753183,0.7602,196.91,196.84,16.99665151]
[1735173755391,1.6643,196.95,196.9,16.99665151]
[1735173755574,1.6643,196.95,196.91,16.99665151]
[1735173756073,18.50115151,196.99,196.92,16.99665151]
[1735173756273,18.50115151,196.99,196.92,10.89903109]
[1735173756274,13.16373109,196.99,196.92,10.89903109]
[1735173756491,13.16373109,196.99,196.88,0.76156783]
[1735173756694,13.16373109,196.99,196.92,10.89903109]
[1735173756987,2.2647,196.99,196.93,10.89903109]
[1735173757191,2.2647,196.99,196.94,10.89903109]
[1735173757487,10.89903109,197.03,196.96,10.89903109]
[1735173757693,0.7602,197.02,196.96,10.89903109]
[1735173758390,0.7602,197.02,196.91,0.761459]
[1735173758391,17.78437751,197.02,196.95,17.02417751]
[1735173759880,17.78437751,197.02,196.94,17.02417751]
[1735173760180,17.02417751,197.01,196.94,17.02417751]
[1735173760379,17.78437751,197.02,196.94,17.02417751]
[1735173760613,17.02417751,197.0,196.93,17.02417751]
[1735173760909,17.78437751,196.99,196.92,17.02417751]
[1735173761071,0.7602,196.99,196.93,17.02417751]
[1735173761274,17.02417751,197.01,196.94,17.02417751]
[1735173761504,17.02417751,197.01,196.89,0.76156888]
[1735173761505,17.02417751,197.03,196.95,17.02417751]
[1735173761698,0.7602,197.02,196.95,17.02417751]
[1735173762004,0.7602,197.02,196.96,17.02417751]
[1735173762896,0.7602,197.02,196.95,17.02417751]
[1735173763097,17.78437751,197.02,196.95,17.02417751]
[1735173763400,17.02417751,197.01,196.94,17.02417751]
[1735173764407,17.02417751,197.03,196.95,17.02417751]
[1735173764601,19.28887751,197.04,196.97,17.02417751]
[1735173764904,2.2647,197.04,196.97,17.02417751]
[1735173765277,19.28887751,197.04,196.97,17.02417751]
[1735173765673,19.28887751,197.04,196.96,17.02417751]
[1735173766379,1.5045,197.04,196.94,30.0]
[1735173766582,17.02417751,197.09,197.01,17.02417751]
[1735173766792,0.7602,197.08,197.01,17.02417751]
[1735173767098,17.78437751,197.08,197.01,17.02417751]
[1735173767304,17.02417751,197.06,196.99,17.02417751]
[1735173767508,0.7602,197.05,196.99,17.02417751]
[1735173767814,17.02417751,197.04,196.96,17.02417751]
[1735173767991,0.7602,197.03,196.96,17.02417751]
[1735173768180,17.78437751,197.03,196.96,17.02417751]
[1735173770103,0.7602,197.03,196.96,17.02417751]
[1735173771108,17.78437751,197.03,196.95,17.02417751]
[1735173772101,12.6863,197.07,196.9,30.76151735]
[1735173772102,20.0,197.04,196.98,17.02417751]
[1735173772300,0.7602,197.04,196.98,17.02417751]
[1735173772505,0.7602,197.04,196.93,0.76136716]
[1735173772506,0.7602,197.06,197.0,17.02417751]
[1735173772713,0.7602,197.07,197.02,17.02417751]
[1735173773008,7.7607,197.1,197.04,17.02417751]
[1735173773181,1.5045,197.1,197.06,17.02417751]
[1735173773608,1.5045,197.1,197.07,17.02417751]
[1735173774483,1.5045,197.1,197.04,17.02417751]
[1735173774678,2.2647,197.1,197.04,17.02417751]
[1735173774882,2.2647,197.1,197.05,17.02417751]
[1735173775105,1.5045,197.1,197.06,17.02417751]
[1735173775714,2.2647,197.1,197.05,17.02417751]
[1735173776434,19.28887751,197.1,197.01,0.76107363]
[1735173776717,19.28887751,197.1,196.97,20.8479]
[1735173776718,2.2647,197.1,197.03,17.02417751]
[1735173777037,1.5045,197.1,197.04,17.02417751]
[1735173777305,1.5045,197.1,197.05,17.02417751]
[1735173777734,1.5045,197.1,197.04,17.02417751]
[1735173778022,1.47710419,197.1,197.04,17.02417751]
[1735173778695,0.7602,197.09,197.02,17.02417751]
[1735173780937,1.47710419,197.1,197.04,17.02417751]